[Event "28th CRO-chT 1A-Men 2019"]
[Site "Mali Losinj"]
[Date "2019.10.03"]
[Round "6.26"]
[White "Bosiocic, Marin"]
[Black "Biti, Ozren"]
[Result "1-0"]
[ECO "C41"]
[WhiteElo "2619"]
[BlackElo "2366"]
[Annotator "ChessBase"]
[PlyCount "97"]
[EventDate "2019.09.28"]
[EventType "team-tourn"]
[EventCountry "CRO"]
[SourceTitle "playchess.com"]
[Source "ChessBase"]
[SourceQuality "1"]
[TimeControl "40/5400+30:1800+30"]

1. e4 {[%emt 0:00:30]} d6 {[%emt 0:00:30]} 2. d4 {[%emt 0:00:00]} Nf6 {[%emt 0:00:00]} 3. Nc3 {[%emt 0:00:00]} e5 {[%emt 0:00:00]} 4. Nf3 {[%emt 0:00:00]} Nbd7 {[%emt 0:01:30]} 5. Bc4 {[%emt 0:00:00]} Be7 {[%emt 0:00:00]} 6. O-O {[%emt 0:00:30]} O-O {[%emt 0:00:00]} 7. a4 {[%emt 0:00:00]} a5 {[%emt 0:00:30]} 8. h3 {[%emt 0:01:00]} c6 {[%emt 0:00:30]} 9. Re1 {[%emt 0:00:00]} exd4 {[%emt 0:00:30]} 10. Qxd4 {[%emt 0:00:00]} Nb6 {[%emt 0:00:30]} 11. Ba2 {[%emt 0:01:30]} d5 {[%emt 0:07:30]} 12. exd5 {[%emt 0:00:30]} Nfxd5 {[%emt 0:00:30]} 13. Bxd5 {[%emt 0:01:30]} Nxd5 {[%emt 0:00:30]} 14. Nxd5 {[%emt 0:00:00]} cxd5 {[%emt 0:00:00]} 15. Bf4 {[%emt 0:00:00]} Bf5 {[%emt 0:07:00]} 16. c3 {[%emt 0:00:30]} Be4 {[%emt 0:02:30]} 17. Nd2 {[%emt 0:00:00]} Bg6 {[%emt 0:00:30]} 18. Nf1 {[%emt 0:08:00]} Rc8 {[%emt 0:06:30]} 19. Qa7 {[%emt 0:02:30]} Bc5 {[%emt 0:10:30]} 20. Qxb7 {[%emt 0:00:30]} d4 {[%emt 0:01:30]} 21. Be5 {[%emt 0:08:30]} f6 {[%emt 0:17:30]} 22. Bxd4 {[%emt 0:03:30]} Rb8 {[%emt 0:02:30]} 23. Qf3 {[%emt 0:03:30]} Bxd4 {[%emt 0:01:30]} 24. Rad1 {[%emt 0:02:30]} Bxf2+ {[%emt 0:05:30]} 25. Qxf2 {[%emt 0:03:30]} Qb6 {[%emt 0:00:30]} 26. Rd2 {[%emt 0:01:30]} Qxf2+ {[%emt 0:02:30]} 27. Kxf2 {[%emt 0:01:30]} Rfe8 {[%emt 0:07:30]} 28. Rxe8+ {[%emt 0:16:30]} Bxe8 {[%emt 0:02:30]} 29. Ne3 {[%emt 0:00:00]} Bxa4 {[%emt 0:06:51]} 30. Nc4 {[%emt 0:02:00]} Rb5 {[%emt 0:00:13]} 31. Rd8+ {[%emt 0:00:30]} Kf7 {[%emt 0:00:05]} 32. Ra8 {[%emt 0:00:00]} Rf5+ {[%emt 0:05:48]} 33. Kg1 {[%emt 0:05:00]} Rc5 {[%emt 0:01:26]} 34. Nxa5 {[%emt 0:00:30]} Bc2 {[%emt 0:01:57]} 35. Ra7+ {[%emt 0:02:30]} Kg6 {[%emt 0:00:17]} 36. c4 {[%emt 0:02:30]} Rg5 {[%emt 0:01:02]} 37. Kf2 {[%emt 0:04:30]} Be4 {[%emt 0:04:44]} 38. g3 {[%emt 0:03:30]} Rf5+ {[%emt 0:00:33]} 39. Ke3 {[%emt 0:01:30]} Bg2 {[%emt 0:01:15]} 40. b4 {[%emt 0:00:00]} Rf3+ {[%emt 0:00:00]} 41. Kd4 {[%emt 0:06:00]} Rxg3 {[%emt 0:05:19]} 42. b5 {[%emt 0:01:30]} f5 {[%emt 0:11:42]} 43. c5 {[%emt 0:05:30]} Bf1 {[%emt 0:09:06]} 44. b6 {[%emt 0:04:30]} Rd3+ {[%emt 0:02:48]} 45. Ke5 {[%emt 0:02:30]} Re3+ {[%emt 0:01:00]} 46. Kd6 {[%emt 0:02:30]} Rd3+ {[%emt 0:00:26]} 47. Kc7 {[%emt 0:02:30]} Bg2 {[%emt 0:00:38]} 48. c6 {[%emt 0:01:30]} f4 {[%emt 0:00:17]} 49. Ra8 {[%emt 0:01:30]} 1-0

[Event "28th CRO-chT 1A-Men 2019"]
[Site "Mali Losinj"]
[Date "2019.10.03"]
[Round "6.27"]
[White "Ascic, Pero"]
[Black "Popov, Ivan"]
[Result "0-1"]
[ECO "B01"]
[WhiteElo "2318"]
[BlackElo "2611"]
[Annotator "ChessBase"]
[PlyCount "113"]
[EventDate "2019.09.28"]
[EventType "team-tourn"]
[EventCountry "CRO"]
[SourceTitle "playchess.com"]
[Source "ChessBase"]
[SourceQuality "1"]
[TimeControl "40/5400+30:1800+30"]

1. e4 {[%emt 0:00:30]} d5 {[%emt 0:00:30]} 2. exd5 {[%emt 0:06:30]} Qxd5 {[%emt 0:00:30]} 3. Nc3 {[%emt 0:04:30]} Qa5 {[%emt 0:00:30]} 4. d4 {[%emt 0:06:30]} Nf6 {[%emt 0:03:30]} 5. Bc4 {[%emt 0:09:30]} c6 {[%emt 0:01:30]} 6. Nge2 {[%emt 0:15:30]} Bf5 {[%emt 0:08:30]} 7. Ng3 {[%emt 0:07:30]} Bg6 {[%emt 0:02:30]} 8. O-O {[%emt 0:03:30]} e6 {[%emt 0:00:30]} 9. Nce2 {[%emt 0:08:30]} Nbd7 {[%emt 0:05:30]} 10. c3 {[%emt 0:03:30]} Bd6 {[%emt 0:02:30]} 11. Bf4 {[%emt 0:03:30]} Be7 {[%emt 0:08:30]} 12. Re1 {[%emt 0:07:15]} O-O {[%emt 0:00:30]} 13. Bd3 {[%emt 0:01:39]} c5 {[%emt 0:11:30]} 14. Bxg6 {[%emt 0:00:15]} hxg6 {[%emt 0:00:30]} 15. dxc5 {[%emt 0:06:11]} Qxc5 {[%emt 0:02:30]} 16. Be3 {[%emt 0:00:15]} Qc7 {[%emt 0:00:30]} 17. Nd4 {[%emt 0:00:30]} a6 {[%emt 0:13:30]} 18. Qe2 {[%emt 0:03:06]} Nc5 {[%emt 0:04:30]} 19. Nf3 {[%emt 0:02:29]} Nd5 {[%emt 0:03:30]} 20. Red1 {[%emt 0:04:33]} Nxe3 {[%emt 0:08:30]} 21. Qxe3 {[%emt 0:00:02]} Na4 {[%emt 0:00:45]} 22. Qe2 {[%emt 0:01:20]} Rfd8 {[%emt 0:01:44]} 23. Qc2 {[%emt 0:00:50]} b5 {[%emt 0:01:31]} 24. Ne4 {[%emt 0:00:56]} Qf4 {[%emt 0:02:45]} 25. b3 {[%emt 0:01:18]} Nb6 {[%emt 0:00:31]} 26. Qe2 {[%emt 0:01:24]} Qc7 {[%emt 0:03:54]} 27. g3 {[%emt 0:00:29]} Rd5 {[%emt 0:00:34]} 28. Rac1 {[%emt 0:00:39]} Rad8 {[%emt 0:01:51]} 29. h4 {[%emt 0:00:13]} Bf6 {[%emt 0:04:46]} 30. Nxf6+ {[%emt 0:00:47]} gxf6 {[%emt 0:00:30]} 31. Rxd5 {[%emt 0:00:12]} Rxd5 {[%emt 0:00:11]} 32. c4 {[%emt 0:00:00]} bxc4 {[%emt 0:00:18]} 33. bxc4 {[%emt 0:00:00]} Rc5 {[%emt 0:00:39]} 34. Nd2 {[%emt 0:00:25]} Kg7 {[%emt 0:00:41]} 35. Qd3 {[%emt 0:00:30]} Nd7 {[%emt 0:01:09]} 36. Nf3 {[%emt 0:01:50]} Rc6 {[%emt 0:02:57]} 37. Qe2 {[%emt 0:00:33]} Rd6 {[%emt 0:00:36]} 38. Qe3 {[%emt 0:00:23]} Nc5 {[%emt 0:00:28]} 39. Nd4 {[%emt 0:00:15]} e5 {[%emt 0:03:00]} 40. Nb3 {[%emt 0:00:03]} Ne6 {[%emt 0:00:34]} 41. c5 {[%emt 0:00:38]} Rd5 {[%emt 0:01:06]} 42. Qc3 {[%emt 0:00:30]} Qc6 {[%emt 0:02:30]} 43. Qb4 {[%emt 0:10:30]} Rd3 {[%emt 0:07:30]} 44. Qc4 {[%emt 0:06:19]} Rd8 {[%emt 0:07:46]} 45. Qe2 {[%emt 0:05:43]} Rb8 {[%emt 0:05:38]} 46. Rd1 {[%emt 0:01:19]} a5 {[%emt 0:00:46]} 47. Rd6 {[%emt 0:00:24]} Qc7 {[%emt 0:01:00]} 48. Qc4 {[%emt 0:03:31]} Rc8 {[%emt 0:02:15]} 49. Ra6 {[%emt 0:01:15]} Nxc5 {[%emt 0:04:06]} 50. Rxa5 {[%emt 0:00:52]} Ne6 {[%emt 0:00:26]} 51. Qxc7 {[%emt 0:00:33]} Rxc7 {[%emt 0:00:30]} 52. Rd5 {[%emt 0:00:22]} Rc2 {[%emt 0:00:17]} 53. Rd2 {[%emt 0:00:18]} Rc4 {[%emt 0:00:01]} 54. Kf1 {[%emt 0:01:47]} f5 {[%emt 0:00:09]} 55. a3 {[%emt 0:00:48]} f4 {[%emt 0:00:23]} 56. Kg2 {[%emt 0:00:58]} f3+ {[%emt 0:00:35]} 57. Kf1 {[%emt 0:01:49]} 0-1

[Event "28th CRO-chT 1A-Men 2019"]
[Site "Mali Losinj"]
[Date "2019.10.03"]
[Round "6.28"]
[White "Tica, Sven"]
[Black "Filipovic, Marko"]
[Result "1-0"]
[ECO "D94"]
[WhiteElo "2418"]
[BlackElo "2349"]
[Annotator "NA"]
[PlyCount "67"]
[EventDate "2019.09.28"]
[EventType "team-tourn"]
[EventCountry "CRO"]
[SourceTitle "playchess.com"]
[Source "ChessBase"]
[SourceQuality "1"]
[TimeControl "40/5400+30:1800+30"]

1. d4 {[%emt 0:01:30]} d5 {[%emt 0:00:30]} 2. c4 {[%emt 0:00:30]} c6 {[%emt 0:00:30]} 3. Nf3 {[%emt 0:00:00]} Nf6 {[%emt 0:00:30]} 4. e3 {[%emt 0:00:00]} g6 {[%emt 0:01:30]} 5. Nc3 {[%emt 0:00:30]} Bg7 {[%emt 0:00:30]} 6. Be2 {[%emt 0:00:30]} O-O {[%emt 0:00:30]} 7. O-O {[%emt 0:00:00]} a6 {[%emt 0:18:30]} 8. a4 {[%emt 0:03:00]} Nbd7 {[%emt 0:13:30]} 9. cxd5 {[%emt 0:05:30]} Nxd5 {[%emt 0:07:30]} 10. e4 {[%emt 0:10:30]} Nxc3 {[%emt 0:01:30]} 11. bxc3 {[%emt 0:00:30]} c5 {[%emt 0:00:30]} 12. a5 {[%emt 0:03:30]} cxd4 {[%emt 0:11:30]} 13. cxd4 {[%emt 0:00:00]} Nb8 {[%emt 0:00:30]} 14. Be3 {[%emt 0:11:00]} Nc6 {[%emt 0:05:30]} 15. Qd2 {[%emt 0:00:30]} h6 {[%emt 0:08:30]} 16. Ra4 {[%emt 0:05:30]} Bg4 {[%emt 0:04:30]} 17. d5 {[%emt 0:01:30]} Bxf3 {[%emt 0:01:30]} 18. Bxf3 {[%emt 0:07:30]} Ne5 {[%emt 0:00:30]} 19. Be2 {[%emt 0:00:30]} g5 {[%emt 0:01:39]} 20. h4 {[%emt 0:06:30]} gxh4 {[%emt 0:03:14]} 21. Bxh6 {[%emt 0:01:30]} Qd6 {[%emt 0:05:09]} 22. Bxg7 {[%emt 0:01:30]} Kxg7 {[%emt 0:00:04]} 23. f4 {[%emt 0:03:30]} Nd7 {[%emt 0:01:49]} 24. e5 {[%emt 0:01:30]} Qc5+ {[%emt 0:02:06]} 25. Kh2 {[%emt 0:00:30]} Rh8 {[%emt 0:01:26]} 26. Rc4 {[%emt 0:01:30]} Qa3 {[%emt 0:02:14]} 27. Rf3 {[%emt 0:00:30]} Qa1 {[%emt 0:00:23]} 28. Rc1 {[%emt 0:01:30]} Qa4 {[%emt 0:00:38]} 29. Bd1 {[%emt 0:02:30]} Qe4 {[%emt 0:03:15]} 30. Bc2 {[%emt 0:00:30]} Qc4 {[%emt 0:00:20]} 31. Bf5 {[%emt 0:00:30]} Qa4 {[%emt 0:00:56]} 32. Rc7 {[%emt 0:00:30]} Rad8 {[%emt 0:00:38]} 33. Qb2 {[%emt 0:00:30]} Kg8 {[%emt 0:03:23]} 34. Bxd7 {[%emt 0:00:30]} 1-0

[Event "28th CRO-chT 1A-Men 2019"]
[Site "Mali Losinj"]
[Date "2019.10.03"]
[Round "6.29"]
[White "Drmic, Tomislav"]
[Black "Golubovic, Boris"]
[Result "1/2-1/2"]
[ECO "A45"]
[WhiteElo "2224"]
[BlackElo "2401"]
[Annotator "NA"]
[PlyCount "98"]
[EventDate "2019.09.28"]
[EventType "team-tourn"]
[EventCountry "CRO"]
[SourceTitle "playchess.com"]
[Source "ChessBase"]
[SourceQuality "1"]
[TimeControl "40/5400+30:1800+30"]

1. d4 {[%emt 0:00:30]} Nf6 {[%emt 0:01:30]} 2. Bf4 {[%emt 0:00:30]} b6 {[%emt 0:09:30]} 3. Nc3 {[%emt 0:01:30]} Bb7 {[%emt 0:00:30]} 4. f3 {[%emt 0:01:30]} d5 {[%emt 0:10:30]} 5. e3 {[%emt 0:02:30]} e6 {[%emt 0:05:30]} 6. Nb5 {[%emt 0:00:30]} Na6 {[%emt 0:00:30]} 7. a3 {[%emt 0:00:30]} c6 {[%emt 0:01:30]} 8. Nc3 {[%emt 0:00:30]} Nh5 {[%emt 0:03:30]} 9. Be5 {[%emt 0:03:30]} f6 {[%emt 0:00:30]} 10. Bg3 {[%emt 0:00:30]} Nxg3 {[%emt 0:09:30]} 11. hxg3 {[%emt 0:00:30]} Qd6 {[%emt 0:00:30]} 12. f4 {[%emt 0:01:30]} g6 {[%emt 0:05:30]} 13. Bd3 {[%emt 0:00:30]} Bg7 {[%emt 0:00:00]} 14. Rxh7 {[%emt 0:01:30]} Rxh7 {[%emt 0:10:00]} 15. Bxg6+ {[%emt 0:00:00]} Kd7 {[%emt 0:00:30]} 16. Bxh7 {[%emt 0:00:00]} Rh8 {[%emt 0:00:30]} 17. Bd3 {[%emt 0:00:30]} Nc7 {[%emt 0:00:00]} 18. Qg4 {[%emt 0:02:30]} Ne8 {[%emt 0:01:00]} 19. O-O-O {[%emt 0:00:30]} Kc7 {[%emt 0:00:30]} 20. Qe2 {[%emt 0:03:30]} e5 {[%emt 0:00:30]} 21. dxe5 {[%emt 0:03:30]} fxe5 {[%emt 0:00:30]} 22. Ba6 {[%emt 0:00:30]} Ba8 {[%emt 0:02:30]} 23. Rxd5 {[%emt 0:01:30]} Qg6 {[%emt 0:00:00]} 24. Rd1 {[%emt 0:04:30]} Nd6 {[%emt 0:04:00]} 25. e4 {[%emt 0:02:30]} Qxg3 {[%emt 0:01:30]} 26. f5 {[%emt 0:03:30]} Rh2 {[%emt 0:03:30]} 27. Qd3 {[%emt 0:07:30]} Qxd3 {[%emt 0:00:30]} 28. Bxd3 {[%emt 0:00:30]} Rxg2 {[%emt 0:00:00]} 29. Nf3 {[%emt 0:01:30]} c5 {[%emt 0:00:00]} 30. b3 {[%emt 0:00:30]} Rf2 {[%emt 0:17:22]} 31. Ng1 {[%emt 0:14:30]} Bc6 {[%emt 0:06:07]} 32. a4 {[%emt 0:03:30]} a6 {[%emt 0:00:04]} 33. Kb2 {[%emt 0:03:30]} b5 {[%emt 0:01:27]} 34. axb5 {[%emt 0:01:30]} axb5 {[%emt 0:00:33]} 35. Nh3 {[%emt 0:00:30]} Rg2 {[%emt 0:02:37]} 36. Bf1 {[%emt 0:01:30]} Rg3 {[%emt 0:01:36]} 37. Rd3 {[%emt 0:02:30]} Rg4 {[%emt 0:03:06]} 38. Be2 {[%emt 0:00:30]} Rg2 {[%emt 0:00:49]} 39. Bf3 {[%emt 0:03:30]} Rg3 {[%emt 0:00:09]} 40. Bh1 {[%emt 0:00:00]} Rxd3 {[%emt 0:00:00]} 41. cxd3 {[%emt 0:02:00]} Nxf5 {[%emt 0:09:10]} 42. exf5 {[%emt 0:06:30]} Bxh1 {[%emt 0:01:30]} 43. Nxb5+ {[%emt 0:00:00]} Kc6 {[%emt 0:00:30]} 44. Nc3 {[%emt 0:00:00]} e4 {[%emt 0:05:53]} 45. Kc2 {[%emt 0:00:30]} exd3+ {[%emt 0:13:40]} 46. Kxd3 {[%emt 0:00:30]} Bxc3 {[%emt 0:01:05]} 47. Kxc3 {[%emt 0:00:00]} Kd6 {[%emt 0:00:09]} 48. Nf2 {[%emt 0:06:00]} Bf3 {[%emt 0:00:59]} 49. Nd3 {[%emt 0:03:30]} Bd5 {[%emt 0:00:08]} 1/2-1/2

[Event "28th CRO-chT 1A-Men 2019"]
[Site "Mali Losinj"]
[Date "2019.10.04"]
[Round "7.1"]
[White "Grachev, Boris"]
[Black "Inarkiev, Ernesto"]
[Result "1/2-1/2"]
[ECO "D39"]
[WhiteElo "2621"]
[BlackElo "2693"]
[Annotator "ChessBase"]
[PlyCount "59"]
[EventDate "2019.09.28"]
[EventType "team-tourn"]
[EventCountry "CRO"]
[SourceTitle "playchess.com"]
[Source "ChessBase"]
[SourceQuality "1"]
[TimeControl "40/5400+30:1800+30"]

1. Nf3 {[%emt 0:00:30]} Nf6 {[%emt 0:02:30]} 2. c4 {[%emt 0:00:00]} e6 {[%emt 0:00:00]} 3. Nc3 {[%emt 0:01:00]} d5 {[%emt 0:00:00]} 4. d4 {[%emt 0:00:30]} dxc4 {[%emt 0:00:30]} 5. e4 {[%emt 0:00:30]} Bb4 {[%emt 0:00:00]} 6. Bg5 {[%emt 0:00:30]} h6 {[%emt 0:00:00]} 7. Bxf6 {[%emt 0:00:00]} Qxf6 {[%emt 0:00:30]} 8. Bxc4 {[%emt 0:00:00]} c5 {[%emt 0:00:00]} 9. O-O {[%emt 0:01:30]} cxd4 {[%emt 0:00:00]} 10. Nb5 {[%emt 0:00:30]} Qe7 {[%emt 0:02:30]} 11. Qxd4 {[%emt 0:00:30]} O-O {[%emt 0:00:00]} 12. Nxa7 {[%emt 0:00:30]} Bc5 {[%emt 0:01:00]} 13. Nxc8 {[%emt 0:00:30]} Rxc8 {[%emt 0:00:30]} 14. Qd3 {[%emt 0:00:00]} Nc6 {[%emt 0:00:30]} 15. Qe2 {[%emt 0:00:00]} Rd8 {[%emt 0:03:30]} 16. Rad1 {[%emt 0:07:30]} Nd4 {[%emt 0:01:30]} 17. Nxd4 {[%emt 0:00:00]} Rxd4 {[%emt 0:00:00]} 18. Rxd4 {[%emt 0:05:00]} Bxd4 {[%emt 0:00:00]} 19. Kh1 {[%emt 0:04:30]} g6 {[%emt 0:19:30]} 20. f4 {[%emt 0:03:30]} Kg7 {[%emt 0:02:30]} 21. b3 {[%emt 0:02:30]} Rd8 {[%emt 0:02:30]} 22. Qf3 {[%emt 0:08:30]} b6 {[%emt 0:12:30]} 23. f5 {[%emt 0:13:30]} exf5 {[%emt 0:07:30]} 24. exf5 {[%emt 0:00:30]} h5 {[%emt 0:03:30]} 25. fxg6 {[%emt 0:20:30]} fxg6 {[%emt 0:00:30]} 26. Qf4 {[%emt 0:01:30]} Bc5 {[%emt 0:09:30]} 27. Qc1 {[%emt 0:01:30]} Rf8 {[%emt 0:01:30]} 28. Qc3+ {[%emt 0:03:30]} Kh6 {[%emt 0:04:30]} 29. Qd2+ {[%emt 0:04:30]} Qg5 {[%emt 0:01:30]} 30. Qxg5+ {[%emt 0:02:02]} 1/2-1/2

[Event "28th CRO-chT 1A-Men 2019"]
[Site "Mali Losinj"]
[Date "2019.10.04"]
[Round "7.2"]
[White "Dreev, Aleksey"]
[Black "Bosiocic, Marin"]
[Result "1-0"]
[ECO "E36"]
[WhiteElo "2662"]
[BlackElo "2619"]
[Annotator "ChessBase"]
[PlyCount "97"]
[EventDate "2019.09.28"]
[EventType "team-tourn"]
[EventCountry "CRO"]
[SourceTitle "playchess.com"]
[Source "ChessBase"]
[SourceQuality "1"]
[TimeControl "40/5400+30:1800+30"]

1. d4 {[%emt 0:00:30]} Nf6 {[%emt 0:00:30]} 2. c4 {[%emt 0:00:00]} e6 {[%emt 0:00:00]} 3. Nc3 {[%emt 0:00:00]} Bb4 {[%emt 0:00:00]} 4. Qc2 {[%emt 0:00:30]} d5 {[%emt 0:00:30]} 5. a3 {[%emt 0:00:30]} Bxc3+ {[%emt 0:00:00]} 6. Qxc3 {[%emt 0:00:00]} O-O {[%emt 0:00:00]} 7. Nf3 {[%emt 0:01:00]} dxc4 {[%emt 0:00:30]} 8. Qxc4 {[%emt 0:00:00]} b6 {[%emt 0:00:00]} 9. Bg5 {[%emt 0:00:00]} Ba6 {[%emt 0:00:00]} 10. Qa4 {[%emt 0:01:30]} Qd7 {[%emt 0:00:30]} 11. Qxd7 {[%emt 0:07:30]} Nbxd7 {[%emt 0:00:30]} 12. Bxf6 {[%emt 0:00:00]} Nxf6 {[%emt 0:15:30]} 13. Rc1 {[%emt 0:00:00]} Rfc8 {[%emt 0:17:30]} 14. e3 {[%emt 0:00:30]} Bb7 {[%emt 0:06:30]} 15. Ne5 {[%emt 0:02:30]} c5 {[%emt 0:02:30]} 16. dxc5 {[%emt 0:00:30]} bxc5 {[%emt 0:00:30]} 17. f3 {[%emt 0:01:30]} Kf8 {[%emt 0:03:30]} 18. Bd3 {[%emt 0:10:30]} Ke7 {[%emt 0:01:30]} 19. Ke2 {[%emt 0:02:30]} Nd7 {[%emt 0:04:30]} 20. Nxd7 {[%emt 0:03:30]} Kxd7 {[%emt 0:00:30]} 21. Rhd1 {[%emt 0:02:30]} Ke7 {[%emt 0:00:00]} 22. Rd2 {[%emt 0:05:30]} Rab8 {[%emt 0:04:00]} 23. e4 {[%emt 0:00:30]} Rc6 {[%emt 0:05:30]} 24. Rc3 {[%emt 0:05:30]} Rbc8 {[%emt 0:03:30]} 25. Rdc2 {[%emt 0:02:30]} Kd6 {[%emt 0:02:30]} 26. Bb5 {[%emt 0:11:30]} Rb6 {[%emt 0:06:30]} 27. Rd3+ {[%emt 0:02:30]} Ke5 {[%emt 0:01:30]} 28. Bc4 {[%emt 0:01:30]} Bc6 {[%emt 0:00:30]} 29. Ke3 {[%emt 0:02:30]} Ba4 {[%emt 0:03:30]} 30. b3 {[%emt 0:02:30]} Bc6 {[%emt 0:01:30]} 31. Rdc3 {[%emt 0:09:30]} Kd6 {[%emt 0:02:20]} 32. Bd3 {[%emt 0:01:30]} Kd7 {[%emt 0:04:06]} 33. e5 {[%emt 0:06:20]} Bb7 {[%emt 0:04:46]} 34. h4 {[%emt 0:03:32]} h6 {[%emt 0:03:07]} 35. h5 {[%emt 0:00:57]} f6 {[%emt 0:04:22]} 36. f4 {[%emt 0:01:49]} a5 {[%emt 0:02:19]} 37. a4 {[%emt 0:05:31]} Rb4 {[%emt 0:01:11]} 38. Bc4 {[%emt 0:01:55]} fxe5 {[%emt 0:01:10]} 39. fxe5 {[%emt 0:00:15]} Bd5 {[%emt 0:00:39]} 40. Bxd5 {[%emt 0:00:00]} exd5 {[%emt 0:00:00]} 41. Rxc5 {[%emt 0:06:11]} Rxc5 {[%emt 0:10:30]} 42. Rxc5 {[%emt 0:00:30]} Ke6 {[%emt 0:02:30]} 43. Rb5 {[%emt 0:02:30]} Rxb5 {[%emt 0:06:43]} 44. axb5 {[%emt 0:00:30]} Kxe5 {[%emt 0:00:06]} 45. Kd3 {[%emt 0:02:30]} d4 {[%emt 0:00:19]} 46. b6 {[%emt 0:01:30]} Kd6 {[%emt 0:00:03]} 47. b7 {[%emt 0:00:30]} Kc7 {[%emt 0:02:03]} 48. Kxd4 {[%emt 0:00:30]} Kxb7 {[%emt 0:00:04]} 49. Kc5 {[%emt 0:00:00]} 1-0

[Event "28th CRO-chT 1A-Men 2019"]
[Site "Mali Losinj"]
[Date "2019.10.04"]
[Round "7.3"]
[White "Popov, Ivan"]
[Black "Lalic, Bogdan"]
[Result "1-0"]
[ECO "B30"]
[WhiteElo "2611"]
[BlackElo "2419"]
[Annotator "ChessBase"]
[PlyCount "79"]
[EventDate "2019.09.28"]
[EventType "team-tourn"]
[EventCountry "CRO"]
[SourceTitle "playchess.com"]
[Source "ChessBase"]
[SourceQuality "1"]
[TimeControl "40/5400+30:1800+30"]

1. e4 {[%emt 0:00:30]} c5 {[%emt 0:04:30]} 2. Nf3 {[%emt 0:00:00]} Nc6 {[%emt 0:00:00]} 3. Bb5 {[%emt 0:00:00]} e6 {[%emt 0:00:00]} 4. O-O {[%emt 0:02:30]} Nge7 {[%emt 0:00:30]} 5. d4 {[%emt 0:00:30]} cxd4 {[%emt 0:00:00]} 6. Nxd4 {[%emt 0:00:00]} Nxd4 {[%emt 0:03:00]} 7. Qxd4 {[%emt 0:01:00]} a6 {[%emt 0:00:30]} 8. Be2 {[%emt 0:00:30]} Nc6 {[%emt 0:00:30]} 9. Qc3 {[%emt 0:00:30]} Qf6 {[%emt 0:02:30]} 10. Qxf6 {[%emt 0:02:30]} gxf6 {[%emt 0:00:00]} 11. Be3 {[%emt 0:00:30]} b5 {[%emt 0:05:00]} 12. Nd2 {[%emt 0:09:30]} Bb7 {[%emt 0:00:30]} 13. a4 {[%emt 0:12:30]} b4 {[%emt 0:00:30]} 14. f4 {[%emt 0:04:30]} Rg8 {[%emt 0:01:30]} 15. Rf2 {[%emt 0:04:30]} Rc8 {[%emt 0:05:30]} 16. Nc4 {[%emt 0:02:30]} f5 {[%emt 0:05:30]} 17. exf5 {[%emt 0:07:30]} d5 {[%emt 0:00:30]} 18. Ne5 {[%emt 0:07:30]} Nxe5 {[%emt 0:09:30]} 19. fxe5 {[%emt 0:00:00]} exf5 {[%emt 0:00:00]} 20. Bd3 {[%emt 0:02:00]} d4 {[%emt 0:06:00]} 21. Bxd4 {[%emt 0:01:30]} Bc5 {[%emt 0:00:30]} 22. Bxc5 {[%emt 0:01:30]} Rxc5 {[%emt 0:00:30]} 23. Bxf5 {[%emt 0:03:30]} h6 {[%emt 0:01:30]} 24. Re1 {[%emt 0:01:30]} Ke7 {[%emt 0:00:30]} 25. Be4 {[%emt 0:03:30]} Bc8 {[%emt 0:00:30]} 26. Bd3 {[%emt 0:02:30]} Rg5 {[%emt 0:00:30]} 27. Ref1 {[%emt 0:01:30]} Be6 {[%emt 0:00:30]} 28. Bxa6 {[%emt 0:00:30]} Rgxe5 {[%emt 0:00:30]} 29. b3 {[%emt 0:03:30]} Re3 {[%emt 0:00:30]} 30. Rd2 {[%emt 0:05:30]} Bf5 {[%emt 0:03:30]} 31. Bc4 {[%emt 0:01:30]} Rc3 {[%emt 0:00:30]} 32. Re2+ {[%emt 0:01:36]} Kf8 {[%emt 0:00:30]} 33. Ref2 {[%emt 0:05:40]} R5xc4 {[%emt 0:02:30]} 34. Rxf5 {[%emt 0:02:25]} Rc7 {[%emt 0:00:00]} 35. R1f2 {[%emt 0:00:12]} Rxc2 {[%emt 0:00:00]} 36. Rxf7+ {[%emt 0:00:17]} Rxf7 {[%emt 0:00:30]} 37. Rxc2 {[%emt 0:00:07]} Rd7 {[%emt 0:00:00]} 38. Rc4 {[%emt 0:01:02]} Rd1+ {[%emt 0:00:00]} 39. Kf2 {[%emt 0:00:10]} Rd2+ {[%emt 0:00:30]} 40. Kf1 {[%emt 0:00:00]} 1-0

[Event "28th CRO-chT 1A-Men 2019"]
[Site "Mali Losinj"]
[Date "2019.10.04"]
[Round "7.4"]
[White "Loncar, Robert"]
[Black "Tica, Sven"]
[Result "1/2-1/2"]
[ECO "D36"]
[WhiteElo "2406"]
[BlackElo "2418"]
[Annotator "NA"]
[PlyCount "27"]
[EventDate "2019.09.28"]
[EventType "team-tourn"]
[EventCountry "CRO"]
[SourceTitle "playchess.com"]
[Source "ChessBase"]
[SourceQuality "1"]
[TimeControl "40/5400+30:1800+30"]

1. d4 {[%emt 0:14:30]} d5 {[%emt 0:00:30]} 2. c4 {[%emt 0:00:00]} e6 {[%emt 0:00:00]} 3. Nc3 {[%emt 0:00:00]} Nf6 {[%emt 0:00:00]} 4. cxd5 {[%emt 0:00:30]} exd5 {[%emt 0:00:30]} 5. Bg5 {[%emt 0:00:30]} c6 {[%emt 0:00:00]} 6. Qc2 {[%emt 0:00:00]} Be7 {[%emt 0:00:00]} 7. e3 {[%emt 0:00:00]} Nbd7 {[%emt 0:00:00]} 8. Bd3 {[%emt 0:02:30]} O-O {[%emt 0:00:00]} 9. Nf3 {[%emt 0:04:30]} Re8 {[%emt 0:00:30]} 10. h3 {[%emt 0:00:00]} Ne4 {[%emt 0:00:00]} 11. Bf4 {[%emt 0:01:00]} Ndf6 {[%emt 0:00:00]} 12. O-O {[%emt 0:01:30]} Bd6 {[%emt 0:00:30]} 13. Bxd6 {[%emt 0:06:30]} Nxd6 {[%emt 0:00:30]} 14. Ne5 {[%emt 0:00:30]} 1/2-1/2

[Event "28th CRO-chT 1A-Men 2019"]
[Site "Mali Losinj"]
[Date "2019.10.04"]
[Round "7.5"]
[White "Golubovic, Boris"]
[Black "Sale, Srdjan"]
[Result "1/2-1/2"]
[ECO "B00"]
[WhiteElo "2401"]
[BlackElo "2412"]
[Annotator "NA"]
[PlyCount "24"]
[EventDate "2019.09.28"]
[EventType "team-tourn"]
[EventCountry "CRO"]
[SourceTitle "playchess.com"]
[Source "ChessBase"]
[SourceQuality "1"]
[TimeControl "40/5400+30:1800+30"]

1. e4 {[%emt 0:00:30]} c5 {[%emt 0:05:30]} 2. Nf3 {[%emt 0:00:30]} e6 {[%emt 0:01:30]} 3. c3 {[%emt 0:02:30]} b6 {[%emt 0:00:30]} 4. d4 {[%emt 0:02:30]} Nf6 {[%emt 0:00:30]} 5. Bd3 {[%emt 0:13:30]} Bb7 {[%emt 0:00:30]} 6. Qe2 {[%emt 0:02:30]} Be7 {[%emt 0:00:30]} 7. O-O {[%emt 0:00:30]} Nc6 {[%emt 0:00:30]} 8. a3 {[%emt 0:03:30]} Na5 {[%emt 0:00:30]} 9. Nbd2 {[%emt 0:01:30]} c4 {[%emt 0:00:30]} 10. Bc2 {[%emt 0:00:30]} Qc7 {[%emt 0:00:30]} 11. Re1 {[%emt 0:05:30]} O-O {[%emt 0:03:30]} 12. Rb1 {[%emt 0:01:30]} Rae8 {[%emt 0:03:30]} 1/2-1/2

[Event "28th CRO-chT 1A-Men 2019"]
[Site "Mali Losinj"]
[Date "2019.10.04"]
[Round "7.6"]
[White "Medak, Bojan"]
[Black "Petrov, Jole"]
[Result "1/2-1/2"]
[ECO "D13"]
[WhiteElo "2351"]
[BlackElo "2418"]
[Annotator "NA"]
[PlyCount "24"]
[EventDate "2019.09.28"]
[EventType "team-tourn"]
[EventCountry "CRO"]
[SourceTitle "playchess.com"]
[Source "ChessBase"]
[SourceQuality "1"]
[TimeControl "40/5400+30:1800+30"]

1. d4 {[%emt 0:00:30]} d5 {[%emt 0:00:30]} 2. c4 {[%emt 0:00:00]} c6 {[%emt 0:00:30]} 3. cxd5 {[%emt 0:01:00]} cxd5 {[%emt 0:00:30]} 4. Nc3 {[%emt 0:00:00]} Nc6 {[%emt 0:00:30]} 5. Bf4 {[%emt 0:00:00]} Nf6 {[%emt 0:00:30]} 6. e3 {[%emt 0:01:30]} a6 {[%emt 0:03:30]} 7. Bd3 {[%emt 0:04:30]} e6 {[%emt 0:07:30]} 8. Nf3 {[%emt 0:00:30]} Be7 {[%emt 0:00:30]} 9. O-O {[%emt 0:00:30]} Nh5 {[%emt 0:00:30]} 10. Be5 {[%emt 0:01:30]} Nxe5 {[%emt 0:05:30]} 11. Nxe5 {[%emt 0:00:30]} Nf6 {[%emt 0:00:30]} 12. Rc1 {[%emt 0:00:00]} O-O {[%emt 0:10:30]} 1/2-1/2